fUST/lending_fUST_20240229
["ID","MTS","AMOUNT","RATE_DAILY","PERIOD"]
[315663040,1709148645358,-500.0,0.00019451,2]
[315663042,1709148645367,-500.0,0.00019451,2]
[315663044,1709148645377,-500.0,0.00019451,2]
[315663046,1709148645386,-500.0,0.00019451,2]
[315663048,1709148645395,-622.75,0.00019451,2]
[315663050,1709148645404,-545.69,0.00019451,2]
[315663052,1709148645413,-921.99,0.00019451,2]
[315663054,1709148645422,-500.0,0.00019451,2]
[315663056,1709148645431,-500.0,0.00019451,2]
[315663058,1709148645440,-705.24,0.00019451,2]
[315663060,1709148645449,-500.0,0.00019451,2]
[315663062,1709148645458,-5447.68,0.00019451,2]
[315663064,1709148645467,-500.0,0.00019451,2]
[315663066,1709148645476,-897.29,0.00019451,2]
[315663068,1709148645485,-6160.13,0.00019451,2]
[315663070,1709148645495,-500.0,0.00019451,2]
[315663072,1709148645505,-500.0,0.00019451,2]
[315663074,1709148645514,-594.19948246,0.00019451,2]
[315663076,1709148645524,-500.0,0.00019451,2]
[315663078,1709148645534,-500.0,0.00019451,2]
[315663080,1709148645543,-1971.7,0.00019451,2]
[315663082,1709148645553,-500.0,0.00019451,2]
[315663084,1709148645566,-500.0,0.00019451,2]
[315663086,1709148645576,-707.91,0.00019451,2]
[315663088,1709148645585,-559.32,0.00019451,2]
[315663090,1709148645594,-500.0,0.00019451,2]
[315663092,1709148645606,-500.0,0.00019451,2]
[315663094,1709148645616,-745.62,0.00019451,2]
[315663096,1709148645625,-500.0,0.00019452,2]
[315663098,1709148645635,-500.0,0.00019452,2]
[315663100,1709148645645,-703.28,0.00019452,2]
[315663102,1709148645655,-500.0,0.00019452,2]
[315663104,1709148645665,-500.0,0.00019452,2]
[315663106,1709148645674,-500.0,0.00019452,2]
[315663108,1709148645684,-8232.02435619,0.0001949,2]
[315663110,1709148645693,-19727.34,0.00019704,3]
[315663112,1709148645702,-23672.8,0.00019714,3]
[315663114,1709148645712,-718.14,0.00019715,3]
[315663117,1709148645722,-500.0,0.00019724,2]
[315663118,1709148645731,-500.0,0.00019724,2]
[315663121,1709148645742,-500.0,0.00019724,2]
[315663122,1709148645751,-500.0,0.00019724,2]
[315663124,1709148645761,-500.0,0.00019724,2]
[315663127,1709148645771,-630.05,0.00019724,2]
[315663129,1709148645781,-592.24,0.00019724,2]
[315663131,1709148645790,-500.0,0.00019724,2]
[315663133,1709148645800,-1042.25,0.00019724,2]
[315663135,1709148645810,-3555.19,0.00019724,2]
[315663137,1709148645819,-181.51197123,0.00019724,2]
[315663139,1709148645828,-500.0,0.00019724,2]
[315663140,1709148645837,-1105.4,0.00019724,2]
[315663143,1709148645847,-930.14,0.00019724,2]
[315663145,1709148645858,-500.0,0.00019724,2]
[315663147,1709148645867,-500.0,0.00019725,2]
[315663149,1709148645877,-500.0,0.00019725,2]
[315663151,1709148645887,-500.0,0.00019725,2]
[315663153,1709148645897,-500.0,0.00019725,2]
[315663155,1709148645910,-921.99,0.00019725,2]
[315663157,1709148645919,-705.24,0.00019725,2]
[315663159,1709148645928,-5447.68,0.00019725,2]
[315663161,1709148645938,-897.29,0.00019725,2]
[315663163,1709148645948,-6160.13,0.00019725,2]
[315663165,1709148645957,-500.0,0.00019725,2]
[315663167,1709148645967,-500.0,0.00019725,2]
[315663169,1709148645976,-500.0,0.00019725,2]
[315663171,1709148645987,-500.0,0.00019725,2]
[315663173,1709148645997,-1971.7,0.00019725,2]
[315663175,1709148646007,-500.0,0.00019725,2]
[315663177,1709148646016,-707.91,0.00019725,2]
[315663179,1709148646025,-559.32,0.00019725,2]
[315663182,1709148646035,-500.0,0.00019726,2]
[315663184,1709148646044,-500.0,0.00019726,2]
[315663186,1709148646054,-703.28,0.00019726,2]
[315663188,1709148646063,-500.0,0.00019726,2]
[315663190,1709148646073,-500.0,0.00019726,2]
[315663192,1709148646082,-299.16957964,0.00019726,2]
[315663194,1709148646091,-168.193142,0.00019739,2]
[315663196,1709148646101,-291.40864162,0.000199,2]
[315663199,1709148646114,-239.38,0.00019989,3]
[315663201,1709148646124,-498.0,0.00019998,2]
[315663203,1709148646132,-500.0,0.00019998,2]
[315663205,1709148646142,-515.0,0.00019998,2]
[315663207,1709148646151,-630.05,0.00019998,2]
[315663209,1709148646160,-1042.25,0.00019998,2]
[315663211,1709148646170,-3555.19,0.00019998,2]
[315663213,1709148646179,-1105.4,0.00019998,2]
[315663215,1709148646188,-930.14,0.00019998,2]
[315663217,1709148646197,-500.0,0.00019999,2]
[315663219,1709148646207,-500.0,0.00019999,2]
[315663222,1709148646216,-500.0,0.00019999,2]
[315663224,1709148646225,-500.0,0.00019999,2]
[315663226,1709148646234,-921.99,0.00019999,2]
[315663228,1709148646243,-705.24,0.00019999,2]
[315663230,1709148646253,-5447.68,0.00019999,2]
[315663232,1709148646262,-897.29,0.00019999,2]
[315663235,1709148646272,-6160.13,0.00019999,2]
[315663236,1709148646281,-500.0,0.00019999,2]
[315663239,1709148646290,-500.0,0.00019999,2]
[315663241,1709148646300,-500.0,0.00019999,2]
[315663243,1709148646311,-1971.7,0.00019999,2]
[315663245,1709148646320,-500.0,0.00019999,2]
[315663247,1709148646330,-707.91,0.00019999,2]
[315663249,1709148646339,-479.84273053,0.00019999,2]
[315663254,1709148646378,-745.62,0.00019725,2]
[315663256,1709148646387,-500.0,0.00019725,2]
[315663258,1709148646397,-79.47726947,0.00019999,2]
[315663260,1709148646407,-500.0,0.00019999,2]
[315663262,1709148646417,-745.62,0.00019999,2]
[315663264,1709148646427,-500.0,0.0002,2]
[315663266,1709148646436,-500.0,0.0002,2]
[315663268,1709148646445,-703.28,0.0002,2]
[315663270,1709148646455,-500.0,0.0002,2]
[315663272,1709148646464,-500.0,0.0002,2]
[315663274,1709148646473,-291.05229882,0.0002,2]
[315663276,1709148646483,-5257.15969568,0.0002,2]
[315663278,1709148646495,-238.49844288,0.00020271,2]
[315663280,1709148646504,-500.0,0.00020272,2]
[315663282,1709148646514,-630.05,0.00020272,2]
[315663285,1709148646524,-1042.25,0.00020272,2]
[315663286,1709148646534,-3555.19,0.00020272,2]
[315663289,1709148646544,-1105.4,0.00020272,2]
[315663291,1709148646555,-930.14,0.00020272,2]
[315663293,1709148646567,-500.0,0.00020273,2]
[315663295,1709148646577,-500.0,0.00020273,2]
[315663296,1709148646586,-703.28,0.00020273,2]
[315663299,1709148646597,-500.0,0.00020273,2]
[315663300,1709148646607,-500.0,0.00020273,2]
[315663302,1709148646617,-500.0,0.00020273,2]
[315663305,1709148646627,-500.0,0.00020273,2]
[315663307,1709148646636,-500.0,0.00020273,2]
[315663309,1709148646646,-921.99,0.00020273,2]
[315663310,1709148646657,-705.24,0.00020273,2]
[315663312,1709148646667,-5447.68,0.00020273,2]
[315663315,1709148646676,-897.29,0.00020273,2]
[315663317,1709148646687,-6160.13,0.00020273,2]
[315663318,1709148646696,-500.0,0.00020273,2]
[315663320,1709148646706,-500.0,0.00020273,2]
[315663323,1709148646716,-1971.7,0.00020273,2]
[315663325,1709148646725,-500.0,0.00020273,2]
[315663327,1709148646734,-707.91,0.00020273,2]
[315663329,1709148646744,-559.32,0.00020273,2]
[315663330,1709148646753,-156.73090037,0.00020299,2]
[315663333,1709148646764,-166.5919254,0.00020299,2]
[315663335,1709148646774,-1000.0,0.00020299,5]
[315663337,1709148646784,-1000.0,0.00020299,5]
[315663339,1709148646795,-700.0,0.00020299,2]
[315663341,1709148646805,-1000.0,0.00020299,5]
[315663343,1709148646815,-1000.0,0.00020299,5]
[315663345,1709148646825,-168.193142,0.000203,2]
[315663347,1709148646834,-2699.08682464,0.00020313,2]
[315663349,1709148646844,-5000.0,0.00020313,5]
[315663351,1709148646858,-555.98382811,0.00020313,4]
[315663353,1709148646867,-4946.77634216,0.00020313,5]
[315663410,1709148647407,-507.09014271,0.00020273,2]
[315668193,1709149831953,-1282.46361782,0.00018899,2]
[315668194,1709149831968,-19.09345526,0.00018899,2]
[315668195,1709149831977,-299.27255816,0.000189,2]
[315668196,1709149831989,-168.193142,0.00019178,2]
[315668198,1709149832000,-186.158843,0.00019178,2]
[315668200,1709149832011,-500.0,0.00019449,2]
[315668202,1709149832023,-500.36408889,0.00019449,2]
[315668205,1709149832034,-500.0,0.00019449,2]
[315668207,1709149832045,-276.94947745,0.00019449,2]
[315668209,1709149832059,-4262.78052255,0.00019449,2]
[315668212,1709149832071,-5133.44,0.00019449,2]
[315668214,1709149832084,-500.0,0.00019449,2]
[315668216,1709149832097,-500.0,0.00019449,2]
[315668218,1709149832108,-500.0,0.00019449,2]
[315668221,1709149832119,-500.0,0.00019449,2]
[315668223,1709149832131,-500.0,0.00019449,2]
[315668225,1709149832142,-500.0,0.00019449,2]
[315668227,1709149832153,-500.0,0.0001945,2]
[315668229,1709149832164,-151.0,0.0001945,2]
[315668232,1709149832174,-500.0,0.0001945,2]
[315668234,1709149832183,-500.0,0.0001945,2]
[315668235,1709149832193,-401.73174751,0.0001945,2]
[315668238,1709149832203,-500.0,0.0001945,2]
[315668240,1709149832213,-380.19074267,0.0001945,2]
[315668242,1709149832224,-500.0,0.0001945,2]
[315668244,1709149832239,-500.0,0.0001945,2]
[315668245,1709149832250,-500.0,0.0001945,2]
[315668247,1709149832260,-500.0,0.0001945,2]
[315668248,1709149832271,-154.22848185,0.0001945,2]
[315668250,1709149832282,-500.0,0.0001945,2]
[315668252,1709149832293,-705.65,0.0001945,2]
[315668253,1709149832302,-500.0,0.0001945,2]
[315668254,1709149832314,-500.0,0.0001945,2]
[315668256,1709149832324,-500.0,0.0001945,2]
[315668257,1709149832334,-500.0,0.0001945,2]
[315668258,1709149832346,-395.3420921,0.0001945,2]
[315668260,1709149832358,-500.0,0.0001945,2]
[315668262,1709149832369,-500.20239318,0.0001945,2]
[315668263,1709149832379,-500.0,0.0001945,2]
[315668264,1709149832390,-173.72154512,0.0001945,2]
[315668265,1709149832400,-500.0,0.0001945,2]
[315668266,1709149832410,-500.0,0.0001945,2]
[315668267,1709149832419,-500.0,0.0001945,2]
[315668268,1709149832431,-500.0,0.0001945,2]
[315668269,1709149832441,-503.46406997,0.0001945,2]
[315668270,1709149832451,-500.0,0.0001945,2]
[315668271,1709149832462,-500.0,0.0001945,2]
[315668272,1709149832472,-500.0,0.0001945,2]
[315668273,1709149832483,-502.04463839,0.0001945,2]
[315668274,1709149832493,-502.42303561,0.0001945,2]
[315668275,1709149832504,-500.0,0.0001945,2]
[315668276,1709149832514,-317.02712957,0.0001945,2]
[315668277,1709149832524,-500.0,0.0001945,2]
[315668278,1709149832534,-500.0,0.0001945,2]
[315668279,1709149832544,-500.0,0.0001945,2]
[315668280,1709149832554,-500.0,0.0001945,2]
[315668281,1709149832564,-500.0,0.0001945,2]
[315668282,1709149832574,-660.46,0.0001945,2]
[315668283,1709149832584,-500.0,0.0001945,2]
[315668284,1709149832595,-500.0,0.0001945,2]
[315668285,1709149832605,-500.0,0.0001945,2]
[315668286,1709149832615,-631.0225076,0.0001945,2]
[315668287,1709149832625,-500.0,0.0001945,2]
[315668288,1709149832635,-500.0,0.0001945,2]
[315668289,1709149832645,-500.0,0.0001945,2]
[315668290,1709149832655,-768.32,0.0001945,2]
[315668291,1709149832665,-3110.79,0.0001945,2]
[315668292,1709149832674,-747.74,0.0001945,2]
[315668293,1709149832684,-500.0,0.0001945,2]
[315668294,1709149832694,-967.23,0.0001945,2]
[315668295,1709149832704,-500.0,0.0001945,2]
[315668296,1709149832714,-1643.08,0.0001945,2]
[315668297,1709149832723,-589.92,0.0001945,2]
[315668298,1709149832733,-813.88,0.0001945,2]
[315668299,1709149832743,-631.29,0.0001945,2]
[315668300,1709149832753,-500.0,0.0001945,2]
[315668301,1709149832763,-500.0,0.0001945,2]
[315668302,1709149832772,-712.91,0.0001945,2]
[315668303,1709149832783,-501.11821318,0.0001945,2]
[315668304,1709149832793,-8232.02435619,0.00019572,2]
[315668305,1709149832802,-2222.32858298,0.00019573,2]
[315668306,1709149832814,-7927.97,0.00019673,3]
[315668307,1709149832977,-9513.57,0.00019683,3]
[315668308,1709149832993,-11416.28,0.00019693,3]
[315668309,1709149833003,-500.0,0.00019703,2]
[315668310,1709149833012,-13699.54,0.00019703,3]
[315668311,1709149833022,-977.18,0.00019713,2]
[315668312,1709149833031,-478.76,0.00019713,3]
[315668313,1709149833041,-16439.45,0.00019713,3]
[315668314,1709149833050,-500.0,0.00019723,2]
[315668315,1709149833060,-4539.73,0.00019723,2]
[315668316,1709149833070,-5133.44,0.00019723,2]
[315668317,1709149833079,-500.0,0.00019723,2]
[315668318,1709149833089,-517.95922984,0.00019723,2]
[315668319,1709149833099,-500.0,0.00019723,2]
[315668320,1709149833108,-500.0,0.00019723,2]
[315668321,1709149833117,-500.0,0.00019723,2]
[315668322,1709149833128,-500.0,0.00019724,2]
[315668323,1709149833137,-500.0,0.00019724,2]
[315668324,1709149833146,-500.0,0.00019724,2]
[315668325,1709149833156,-705.65,0.00019724,2]
[315668326,1709149833166,-500.0,0.00019724,2]
[315668327,1709149833175,-500.0,0.00019724,2]
[315668328,1709149833184,-500.0,0.00019724,2]
[315668329,1709149833194,-500.0,0.00019724,2]
[315668330,1709149833203,-500.0,0.00019724,2]
[315668331,1709149833212,-500.0,0.00019724,2]
[315668332,1709149833222,-500.0,0.00019724,2]
[315668333,1709149833231,-500.0,0.00019724,2]
[315668334,1709149833240,-500.0,0.00019724,2]
[315668335,1709149833250,-500.0,0.00019724,2]
[315668336,1709149833259,-660.46,0.00019724,2]
[315668337,1709149833268,-500.0,0.00019724,2]
[315668338,1709149833277,-768.32,0.00019724,2]
[315668339,1709149833287,-3110.79,0.00019724,2]
[315668340,1709149833296,-747.74,0.00019724,2]
[315668341,1709149833305,-500.0,0.00019724,2]
[315668342,1709149833314,-967.23,0.00019724,2]
[315668343,1709149833324,-500.0,0.00019724,2]
[315668344,1709149833333,-1643.08,0.00019724,2]
[315668345,1709149833344,-589.92,0.00019724,2]
[315668346,1709149833354,-715.74594684,0.00019724,2]
[315668392,1709149843122,-199.51503877,0.000189,2]
[315668393,1709149843131,-500.0,0.00019449,2]
[315668394,1709149843141,-936.46,0.0001945,2]
[315668395,1709149843150,-500.0,0.00019723,2]
[315668396,1709149843159,-98.13405316,0.00019724,2]
[315668397,1709149843169,-458.13515179,0.00019724,2]
[315674905,1709151038235,-1278.13474435,0.00019176,2]
[315674918,1709151038356,-23.42232873,0.00019176,2]
[315674920,1709151038366,-1213.69902085,0.00019177,2]
[315674922,1709151038376,-1213.67471576,0.00019177,2]
[315674924,1709151038386,-168.193142,0.00019178,2]
[315674926,1709151038396,-164.343101,0.00019178,2]
[315674928,1709151038406,-500.0,0.00019449,2]
[315674930,1709151038415,-478.12476155,0.00019449,2]
[315675448,1709151043198,-21.87523845,0.00019449,2]
[315675450,1709151043208,-500.0,0.00019449,2]
[315675452,1709151043217,-500.0,0.00019449,2]
[315675454,1709151043227,-500.0,0.00019449,2]
[315675456,1709151043236,-500.0,0.00019449,2]
[315675458,1709151043246,-500.0,0.00019449,2]
[315675460,1709151043256,-500.0,0.00019449,2]
[315675462,1709151043265,-882.34574155,0.0001949,2]
[315677960,1709152234618,-179.53546718,0.00018494,2]
[315677961,1709152234627,-719.31845796,0.00018495,2]
[315677962,1709152234637,-1301.55707308,0.00018496,2]
[315677963,1709152234647,-300.0,0.00018496,2]
[315677964,1709152234657,-331.63587256,0.00018497,2]
[315677965,1709152234670,-6431.78814547,0.00018497,2]
[315677968,1709152234682,-14358.81201557,0.00018497,2]
[315677969,1709152234692,-1048.78548303,0.000189,2]
[315677970,1709152234701,-431.91651792,0.00019076,2]
[315677972,1709152234710,-198.65185913,0.00019076,2]
[315677974,1709152234719,-186.158843,0.00019178,2]
[315677976,1709152234729,-168.1931462,0.00019178,2]
[315677977,1709152234739,-7349.67861464,0.0001949,2]
[315677978,1709152234748,-1500.0,0.000195,2]
[315677979,1709152234758,-1777.86286636,0.0001961,2]
[315677980,1709152234767,-3427.65,0.00019699,3]
[315677981,1709152234777,-6536.29,0.000197,3]
[315677982,1709152234787,-5823.22,0.00019708,2]
[315677983,1709152234797,-500.0,0.00019708,2]
[315677984,1709152234806,-234.73973401,0.00019708,2]
[315677985,1709152234815,-500.0,0.00019708,2]
[315677986,1709152234824,-500.0,0.00019709,2]
[315677987,1709152234834,-5412.35,0.00019709,2]
[315677988,1709152234844,-500.0,0.00019709,2]
[315677989,1709152234854,-217.85395828,0.00019709,2]
[315677990,1709152234863,-500.0,0.00019709,2]
[315677991,1709152234874,-500.0,0.00019709,2]
[315677992,1709152234884,-500.0,0.00019709,2]
[315677993,1709152234894,-592.02,0.00019709,2]
[315677994,1709152234904,-500.0,0.00019709,2]
[315677995,1709152234914,-500.0,0.0001971,2]
[315677996,1709152234924,-354.10599002,0.0001971,2]
[315677997,1709152234933,-500.0,0.0001971,2]
[315677998,1709152234944,-500.0,0.0001971,2]
[315677999,1709152234954,-682.29,0.0001971,2]
[315678000,1709152234963,-500.0,0.0001971,2]
[315678001,1709152234973,-500.0,0.0001971,2]
[315678002,1709152234982,-500.0,0.0001971,2]
[315678003,1709152234992,-500.0,0.0001971,2]
[315678004,1709152235002,-500.0,0.0001971,2]
[315678005,1709152235013,-500.0,0.0001971,2]
[315678006,1709152235022,-500.0,0.0001971,2]
[315678007,1709152235035,-442.61824244,0.0001971,2]
[315678008,1709152235045,-500.0,0.0001971,2]
[315678009,1709152235055,-500.0,0.0001971,2]
[315678010,1709152235065,-500.0,0.0001971,2]
[315678011,1709152235076,-500.0,0.0001971,2]
[315678012,1709152235086,-500.0,0.0001971,2]
[315678013,1709152235095,-1916.04426525,0.0001971,2]
[315678014,1709152235109,-383.79573475,0.0001971,2]
[315678015,1709152235119,-744.26,0.0001971,2]
[315678016,1709152235130,-500.0,0.0001971,2]
[315678017,1709152235140,-500.0,0.0001971,2]
[315678018,1709152235150,-501.87966091,0.0001971,2]
[315678019,1709152235160,-310.83081234,0.0001971,2]
[315678020,1709152235172,-371.95918766,0.0001971,2]
[315678021,1709152235182,-815.79,0.0001971,2]
[315678022,1709152235192,-500.0,0.0001971,2]
[315678023,1709152235203,-390.33,0.0001971,3]
[315678024,1709152235213,-195.17,0.0001971,3]
[315678025,1709152235224,-309.28,0.00019711,3]
[315678026,1709152235235,-677.24,0.00019711,3]
[315678027,1709152235245,-500.0,0.0001972,2]
[315678028,1709152235256,-500.0,0.0001972,2]
[315678029,1709152235266,-500.0,0.0001972,2]
[315678030,1709152235275,-500.0,0.0001972,2]
[315678031,1709152235289,-500.0,0.0001972,2]
[315678032,1709152235298,-500.0,0.0001972,2]
[315678033,1709152235308,-500.0,0.0001972,2]
[315678034,1709152235318,-500.1468227,0.0001972,2]
[315678035,1709152235328,-151.0,0.0001972,2]
[315678036,1709152235339,-500.0,0.0001972,2]
[315678037,1709152235349,-500.0,0.0001972,2]
[315678038,1709152235359,-500.0,0.0001972,2]
[315678039,1709152235369,-515.31171964,0.0001972,2]
[315678040,1709152235379,-524.20214721,0.0001972,2]
[315678041,1709152235389,-500.0,0.0001972,2]
[315678042,1709152235399,-500.0,0.0001972,2]
[315678043,1709152235409,-500.0,0.0001972,2]
[315678044,1709152235419,-500.0,0.0001972,2]
[315678045,1709152235432,-500.0,0.0001972,2]
[315678046,1709152235442,-1012.39,0.0001972,2]
[315678047,1709152235452,-500.0,0.0001972,2]
[315678048,1709152235462,-807.99,0.0001972,2]
[315678049,1709152235474,-3212.74,0.0001972,2]
[315678050,1709152235484,-1006.34,0.0001972,2]
[315678051,1709152235494,-500.0,0.0001972,2]
[315678052,1709152235504,-500.0,0.0001972,2]
[315678053,1709152235514,-844.04,0.0001972,2]
[315678054,1709152235524,-500.0,0.0001972,2]
[315678055,1709152235537,-500.0,0.0001972,2]
[315678056,1709152235548,-500.0,0.00019721,2]
[315678057,1709152235559,-144.36626635,0.00019721,2]
[315678074,1709152238402,-355.84707378,0.00018494,2]
[315678075,1709152238415,-945.7099993,0.00018494,2]
[315678076,1709152238425,-9748.6723971,0.00018495,2]
[315678077,1709152238437,-5483.73836494,0.00018495,2]
[315678078,1709152238447,-500.0,0.0001972,2]
[315678079,1709152238456,-500.0,0.0001972,2]
[315678080,1709152238470,-355.63373365,0.00019721,2]
[315678081,1709152238480,-500.0,0.00019721,2]
[315678082,1709152238490,-763.86,0.00019721,2]
[315678083,1709152238500,-500.0,0.00019721,2]
[315678084,1709152238510,-500.0,0.00019721,2]
[315678085,1709152238520,-175.606412,0.00019721,2]
[315678086,1709152238529,-559.163846,0.00019721,2]
[315678087,1709152238545,-559.163846,0.00019721,2]
[315678088,1709152238556,-500.0,0.00019722,2]
[315678089,1709152238565,-189.59852205,0.00019722,2]
[315678090,1709152238604,-310.40147795,0.00019722,2]
[315678091,1709152238614,-465.43995302,0.00019722,2]
[315678092,1709152238624,-286.06272137,0.00019722,2]
[315678093,1709152238653,-213.93727863,0.00019722,2]
[315678094,1709152238663,-500.0,0.00019722,2]
[315678095,1709152238673,-500.0,0.00019722,2]
[315678096,1709152238681,-500.0,0.00019722,2]
[315678097,1709152238691,-500.0,0.00019722,2]
[315678098,1709152238700,-1777.86286635,0.00019761,2]
[315678099,1709152238710,-585.51,0.00019902,3]
[315678100,1709152238719,-1777.86286635,0.00019912,2]
[315678101,1709152238729,-657.59226731,0.00019964,2]
[315678102,1709152238738,-151.0,0.00019967,2]
[315678103,1709152238748,-657.59226731,0.00019967,2]
[315678104,1709152238757,-5823.22,0.00019982,2]
[315678105,1709152238768,-500.0,0.00019982,2]
[315678106,1709152238777,-657.59226731,0.00019982,2]
[315678107,1709152238789,-500.0,0.00019983,2]
[315678108,1709152238798,-5412.35,0.00019983,2]
[315678109,1709152238807,-500.0,0.00019983,2]
[315678110,1709152238817,-500.0,0.00019983,2]
[315678111,1709152238826,-592.02,0.00019983,2]
[315678112,1709152238836,-559.163846,0.00019983,2]
[315678113,1709152238846,-211.33825127,0.00019983,2]
[315678114,1709152238886,-347.82559473,0.00019983,2]
[315678115,1709152238895,-500.0,0.00019984,2]
[315678116,1709152238905,-682.29,0.00019984,2]
[315678117,1709152238915,-500.0,0.00019984,2]
[315678118,1709152238924,-500.0,0.00019984,2]
[315678119,1709152238934,-500.0,0.00019984,2]
[315678120,1709152238944,-2299.84,0.00019984,2]
[315678121,1709152238954,-744.26,0.00019984,2]
[315678122,1709152238964,-500.0,0.00019984,2]
[315678123,1709152238974,-682.79,0.00019984,2]
[315678124,1709152238983,-815.79,0.00019984,2]
[315678125,1709152238993,-550.8,0.00019994,2]
[315678126,1709152239002,-563.97,0.00019994,2]
[315678127,1709152239012,-364.91903184,0.00019994,2]
[315678128,1709152239021,-500.0,0.00019994,2]
[315678129,1709152239031,-500.0,0.00019994,2]
[315678130,1709152239043,-807.99,0.00019994,2]
[315678131,1709152239053,-3212.74,0.00019994,2]
[315678132,1709152239062,-1006.34,0.00019994,2]
[315678133,1709152239072,-844.04,0.00019994,2]
[315678134,1709152239082,-534.55314206,0.00019994,2]
[315678135,1709152239092,-500.0,0.00019994,2]
[315678136,1709152239103,-500.0,0.00019995,2]
[315678137,1709152239113,-763.86,0.00019995,2]
[315678138,1709152239123,-500.0,0.00019995,2]
[315678139,1709152239134,-500.0,0.00019995,2]
[315678140,1709152239145,-259.575698,0.00019995,2]
[315678141,1709152239155,-559.163846,0.00019995,2]
[315678142,1709152239166,-559.163846,0.00019995,2]
[315678143,1709152239176,-500.0,0.00019996,2]
[315678144,1709152239186,-500.0,0.00019996,2]
[315678145,1709152239296,-1000.0,0.0002,2]
[315678146,1709152239308,-301.75544608,0.0002,2]
[315678147,1709152239317,-155.0,0.0002,2]
[315678148,1709152239326,-1777.86286635,0.00020062,2]
[315678149,1709152239335,-5000.0,0.00020143,5]
[315678150,1709152239344,-5000.0,0.00020143,5]
[315678151,1709152239353,-5000.0,0.00020143,5]
[315678152,1709152239363,-1777.86286635,0.00020213,2]
[315678153,1709152239372,-16365.79839291,0.00020242,2]
[315678154,1709152239381,-559.163846,0.00020242,2]
[315678155,1709152239390,-559.163846,0.00020242,2]
[315678156,1709152239399,-5823.22,0.00020256,2]
[315678157,1709152239409,-500.0,0.00020256,2]
[315678158,1709152239418,-5412.35,0.00020257,2]
[315678159,1709152239430,-500.0,0.00020257,2]
[315678160,1709152239439,-576.33517877,0.00020257,2]
[315678161,1709152239448,-592.02,0.00020257,2]
[315678162,1709152239458,-500.0,0.00020258,2]
[315678163,1709152239471,-682.29,0.00020258,2]
[315678164,1709152239480,-500.0,0.00020258,2]
[315678165,1709152239490,-500.0,0.00020258,2]
[315678166,1709152239500,-500.0,0.00020258,2]
[315678167,1709152239510,-2299.84,0.00020258,2]
[315678168,1709152239521,-744.26,0.00020258,2]
[315678169,1709152239532,-682.79,0.00020258,2]
[315678170,1709152239547,-815.79,0.00020258,2]
[315678171,1709152239558,-559.163846,0.00020258,2]
[315678172,1709152239569,-559.163846,0.00020258,2]
[315678173,1709152239581,-500.0,0.00020268,2]
[315678174,1709152239592,-500.0,0.00020268,2]
[315678175,1709152239602,-807.99,0.00020268,2]
[315678176,1709152239612,-3212.74,0.00020268,2]
[315678177,1709152239622,-1006.34,0.00020268,2]
[315678178,1709152239632,-844.04,0.00020268,2]
[315678179,1709152239641,-763.86,0.00020269,2]
[315678180,1709152239651,-500.0,0.00020269,2]
[315678181,1709152239662,-500.0,0.00020269,2]
[315678182,1709152239672,-500.0,0.0002027,2]